[Event "FIDE WY-U16 Olympiad 2022"]
[Site "Nakhchivan"]
[Date "2022.10.02"]
[Round "1.3"]
[White "Abdullabayli, Rajab"]
[Black "Hernandez Izquierdo, Jose A."]
[Result "1/2-1/2"]
[ECO "B41"]
[WhiteElo "1506"]
[BlackElo "2140"]
[Annotator "TA"]
[PlyCount "136"]
[EventDate "2022.10.02"]
[EventType "team-tourn"]
[EventCountry "AZE"]
[SourceTitle "playchess.com"]
[Source "ChessBase"]
[SourceQuality "1"]
[WhiteTeam "Azerbaijan"]
[BlackTeam "Cuba"]
[WhiteTeamCountry "AZE"]
[BlackTeamCountry "CUB"]
[TimeControl "40/5400+30:1800+30"]

{[%evp 13,136,15,56,48,55,47,56,45,44,46,54,60,107,102,93,99,106,16,41,28,34,10,41,26,23,-89,-87,-66,-87,-83,0,0,52,61,45,55,145,61,225,218,221,173,172,168,210,203,214,209,216,213,251,237,266,252,264,255,262,256,265,0,243,0,265,252,341,230,236,233,230,226,245,237,216,225,225,212,322,316,306,306,276,232,261,0,299,319,403,0,0,0,0,0,0,0,0,0,0,0,0,0,0,0,0,0,0,0,0,0,0,0,0,0,0,0,0,0,0,0,0,0,0,0,0,0,0]} 1. e4 {[%emt 0:00:02]} c5 {[%emt 0:00:14]} 2. Nf3 {[%emt 0:00:06]} e6 {[%emt 0:00:05]} 3. d4 {[%emt 0:00:05]} cxd4 {[%emt 0:00:05]} 4. Nxd4 {[%emt 0:00:05]} a6 {[%emt 0:00:08]} 5. c4 {[%emt 0:00:05]} Nf6 {[%emt 0:00:11]} 6. Nc3 {[%emt 0:00:06]} Qc7 {[%emt 0:00:10]} 7. a3 {[%emt 0:00:16]} Be7 {[%emt 0:01:18][%cal Of6e4]} 8. Be2 {[%emt 0:00:23] B41: Sicilian: Kan Variation: 5 c4.} b6 {[%emt 0:00:35]} 9. O-O {[%emt 0:00:56]} Bb7 {[%emt 0:00:24]} 10. f3 {[%emt 0:00:10] White is slightly better.} O-O {[%emt 0:00:59]} 11. Kh1 {[%emt 0:00:43] [#]} Rd8 $146 {[%emt 0:02:03]} ({Predecessor:} 11... d6 12. Be3 Nbd7 13. Qd2 Rac8 14. Rfc1 Qb8 15. Bf1 Rfe8 16. Bg1 Bf8 17. b4 g6 {1-0 (31) Lupulescu,C (2571)-Thesing,M (2410) Bucharest 2006}) 12. Be3 {[%emt 0:11:55]} d5 {[%emt 0:04:14]} (12... d6 $14 {should be considered.}) 13. cxd5 $16 {[%emt 0:00:25]} exd5 {[%emt 0:00:07]} 14. Rc1 {[%emt 0:00:05]} dxe4 {[%emt 0:03:46]} 15. Nxe4 {[%emt 0:00:36]} (15. fxe4 $16 {[%cal Oc3d5] And now Nd5! would win.} Bc5 16. Bc4 Bxd4 17. Nd5 Bxd5 18. Bxd5) 15... Qe5 {[%emt 0:01:08]} 16. Bc4 {[%emt 0:07:38]} (16. Nxf6+ Bxf6 17. Qb3 Nd7 $11) 16... b5 {[%emt 0:13:49]} (16... Nxe4 17. fxe4 Qxe4 18. Qe2 $16) 17. Qb3 (17. Nxf6+ $2 Bxf6 18. Qb3 bxc4 $19) 17... Nd5 {[%emt 0:03:22]} 18. Bf2 {[%emt 0:20:30]} Nd7 {[%emt 0:05:27]} 19. Bg3 {[%emt 0:07:49]} Qxd4 $17 {[%emt 0:02:51]} 20. Rfd1 {[%emt 0:00:04]} bxc4 {[%emt 0:01:45]} 21. Qxb7 {[%emt 0:00:09] [#]} Qb6 {[%emt 0:05:41]} 22. Qxd5 $11 {[%emt 0:00:20]} Qxb2 {[%emt 0:00:57]} ({Black should try} 22... Nf8 $11 23. Qxc4 Qxb2) 23. Bc7 $1 $36 {[%emt 0:01:25][%mdl 2048] Black must now prevent Nd6. White has some pressure.} ({Of course not} 23. Qxc4 Nb6 24. Qf1 Qxa3 $11) 23... Nb6 {[%emt 0:17:45]} 24. Qc6 {[%emt 0:00:05]} Rxd1+ {[%emt 0:07:30]} 25. Rxd1 {[%emt 0:00:05]} Qb3 {[%emt 0:01:37]} (25... Rc8 $1 $14) 26. Re1 $18 {[%emt 0:01:15]} Rc8 {[%emt 0:04:32][%cal Ob6d5]} 27. Qxb6 {[%emt 0:00:41]} Qxb6 {[%emt 0:00:05]} 28. Bxb6 {[%emt 0:00:04][%cal Ob6c5]} Bxa3 {[%emt 0:00:07] [#]} 29. Bc5 $1 {[%emt 0:03:26][%mdl 512] Inhibits Bb4.} Bxc5 {[%emt 0:05:38]} (29... Rxc5 30. Nxc5) 30. Nxc5 {[%emt 0:00:04][%mdl 4096] Endgame KRN-KR} a5 {[%emt 0:00:09]} 31. Na4 {[%emt 0:00:58]} f6 {[%emt 0:00:41]} 32. Rc1 {[%emt 0:00:12]} Rb8 {[%emt 0:02:27]} 33. h3 {[%emt 0:00:38]} Rb4 {[%emt 0:00:30]} 34. Nc3 {[%emt 0:00:43]} Kf7 {[%emt 0:01:57]} 35. Nd5 {[%emt 0:01:20]} Rb5 {[%emt 0:00:15]} 36. Nc3 {[%emt 0:01:01]} Rb4 {[%emt 0:01:14]} 37. Nd5 {[%emt 0:01:48]} Rb5 {[%emt 0:00:17]} 38. Ne3 {[%emt 0:00:03]} a4 {[%emt 0:00:21]} 39. Nxc4 {[%emt 0:00:28]} Ke6 {[%emt 0:03:27] Inhibits Nd6.} 40. Ne3 {[%emt 0:04:16]} Rb3 {[%emt 0:02:41]} 41. Nc2 {[%emt 0:30:26] Hoping for Nd4+.} Kd6 {[%emt 0:31:34]} 42. Nd4 {[%emt 0:02:42]} Rb4 {[%emt 0:06:44]} 43. Nf5+ {[%emt 0:02:05]} Kd5 {[%emt 0:01:32]} 44. Rc7 {[%emt 0:04:11]} ({Don't play} 44. Nxg7 a3 45. Ra1 Ra4 $16) 44... g6 {[%emt 0:00:53]} (44... Rb1+ $142 45. Kh2 g6) 45. Ne3+ {[%emt 0:00:43]} Kd6 {[%emt 0:00:25] Strongly threatening ...Rb1+.} 46. Rxh7 {[%emt 0:06:30]} Rb3 {[%emt 0:00:45]} 47. Nc2 {[%emt 0:00:39]} ({Resist} 47. Nc4+ $6 Kc5 $18) 47... Rb2 {[%emt 0:00:00]} 48. Ne3 {[%emt 0:00:00]} (48. Na3 $18 {Nc4+ is the strong threat.} Kc5 49. Rh4) 48... Kc5 {[%emt 0:00:00][%mdl 8192]} (48... Rb3 $11 {and Black has nothing to worry.}) 49. Ra7 {[%emt 0:00:00]} Rb4 {[%emt 0:00:00]} 50. Ng4 $2 {[%emt 0:00:00]} (50. Nc2 $18 Rb2 51. Rc7+ Kb6 52. Rc8 Rb1+ 53. Kh2) 50... Kb6 $1 $11 {[%emt 0:00:00] The position is equal.} 51. Ra8 {[%emt 0:00:00]} Kb7 {[%emt 0:00:00] Inhibits Rc8.} 52. Rxa4 {[%emt 0:00:00]} Rxa4 {[%emt 0:00:00]} 53. Nxf6 {[%emt 0:00:00] KR-KN} Kc6 {[%emt 0:00:00]} 54. Kh2 {[%emt 0:00:00]} Kd6 {[%emt 0:00:00]} 55. Kg3 {[%emt 0:00:00]} Ke5 {[%emt 0:00:00]} 56. Ne4 {[%emt 0:00:00]} Kf5 {[%emt 0:00:00]} 57. h4 {[%emt 0:00:00]} Ra1 {[%emt 0:00:00]} 58. Nd6+ {[%emt 0:00:00]} Ke6 {[%emt 0:00:00]} 59. Nc4 {[%emt 0:00:00]} Ra4 {[%emt 0:00:00]} 60. Ne3 {[%emt 0:00:00]} Ra3 {[%emt 0:00:00]} 61. Ng4 {[%emt 0:00:00]} Kf5 {[%emt 0:00:00]} 62. Nh6+ {[%emt 0:00:00]} Kf6 {[%emt 0:00:00]} 63. Kh3 {[%emt 0:00:00]} Rc3 {[%emt 0:00:00]} (63... Kg7 $5 64. Ng4 $8 Kf7 $11) 64. Kg3 {[%emt 0:00:00]} Ra3 {[%emt 0:00:00]} (64... Kg7 $5 65. Ng4 $8 Kf7 $11) 65. Ng4+ {[%emt 0:00:00]} Kf5 {[%emt 0:00:00]} 66. Nf2 {[%emt 0:00:00]} Ra2 {[%emt 0:00:00]} 67. Ne4 {[%emt 0:00:00]} Re2 {[%emt 0:00:00]} 68. Nf2 {[%emt 0:00:00]} Ra2 {[%emt 0:00:00] White really could win this.  Weighted Error Value: White=0.32/Black=0.27 (precise)} 1/2-1/2

[Event "FIDE WY-U16 Olympiad 2022"]
[Site "Nakhchivan"]
[Date "2022.10.02"]
[Round "1.4"]
[White "Caballero Ramos, Greter"]
[Black "Humbatova, Nazli"]
[Result "1/2-1/2"]
[ECO "C01"]
[WhiteElo "1912"]
[BlackElo "1632"]
[Annotator "TA"]
[PlyCount "80"]
[EventDate "2022.10.02"]
[EventType "team-tourn"]
[EventCountry "AZE"]
[SourceTitle "playchess.com"]
[Source "ChessBase"]
[SourceQuality "1"]
[WhiteTeam "Cuba"]
[BlackTeam "Azerbaijan"]
[WhiteTeamCountry "CUB"]
[BlackTeamCountry "AZE"]
[TimeControl "40/5400+30:1800+30"]

{[%evp 14,80,19,8,39,39,37,33,63,75,72,68,79,59,75,75,77,42,55,54,57,46,40,47,89,49,65,43,66,-175,-160,-161,-154,-478,-239,-289,-186,-168,-175,-181,-185,-196,-162,-161,-85,-92,0,-88,-71,-112,66,87,69,76,149,64,175,97,193,0,0,0,0,0,0,0,0,0,0]} 1. e4 {[%emt 0:00:17]} e6 {[%emt 0:00:08]} 2. d4 {[%emt 0:00:13]} d5 {[%emt 0:00:05]} 3. exd5 {[%emt 0:00:17]} exd5 {[%emt 0:00:06]} 4. Bd3 {[%emt 0:00:09]} Bd6 {[%emt 0:00:42]} 5. Qf3 {[%emt 0:00:16]} Nc6 {[%emt 0:05:14]} 6. c3 {[%emt 0:00:27]} Be6 {[%emt 0:05:50]} 7. Ne2 {[%emt 0:02:34] 7.Bf4 is not played anymore.} Qd7 {[%emt 0:02:37]} 8. Bf4 {[%emt 0:07:14]} O-O-O {[%emt 0:03:32] C01: French: Exchange Variation.} 9. Bxd6 {[%emt 0:03:53]} Qxd6 {[%emt 0:12:15]} 10. O-O {[%emt 0:05:10] [#]} Qd7 $146 {[%emt 0:10:19] White is slightly better.} ({Predecessor:} 10... Nf6 11. Nd2 Bg4 12. Bf5+ Bxf5 13. Qxf5+ Kb8 14. Rfe1 g6 15. Qf4 Rhe8 16. Qxd6 Rxd6 17. Nf4 Rdd8 {½-½ (17) Montero Martinez,C (2089)-Sorensen,B (2263) Marianske Lazne 2016}) 11. Nd2 {[%emt 0:09:35]} Nge7 {[%emt 0:05:54]} 12. Nb3 {[%emt 0:05:29]} b6 {[%emt 0:12:52] Prevents Nc5.} 13. Ba6+ {[%emt 0:10:24]} Kb8 {[%emt 0:00:09]} 14. Qd3 {[%emt 0:02:24]} Ka8 {[%emt 0:04:36]} 15. Qb5 {[%emt 0:04:09][%cal Ob3c5]} Rb8 {[%emt 0:00:28]} 16. Nf4 {[%emt 0:03:17]} Bf5 {[%emt 0:07:27]} 17. Rfe1 {[%emt 0:09:38]} g5 {[%emt 0:05:33]} 18. Nd3 {[%emt 0:04:40]} f6 {[%emt 0:08:18] Against Ne5} 19. Re3 {[%emt 0:10:20]} Qd6 {[%emt 0:00:48]} 20. Rae1 {[%emt 0:00:53]} Bd7 {[%emt 0:02:31] [#]} 21. Qa4 $2 {[%emt 0:02:16]} (21. Nbc5 $1 $14 {keeps the upper hand.} Be8 (21... bxc5 22. dxc5) 22. Ne6) 21... Nf5 $19 {[%emt 0:01:53]} 22. Rh3 {[%emt 0:06:12]} Ncxd4 {[%emt 0:01:14]} 23. Qb4 {[%emt 0:02:37]} (23. Qa3 $17 {nothing else works.} Nc2 24. Qxd6 Nxd6 25. Re2 Bxh3 26. gxh3) 23... Nxb3 {[%emt 0:07:02]} (23... c5 $142 24. Nbxc5 bxc5 25. Qxc5 Qxa6 26. cxd4 g4 27. Qxd5+ Bc6 28. Qxf5 gxh3 29. Qxh3 Rhg8) 24. Qxb3 {[%emt 0:01:29]} h5 {[%emt 0:00:45]} 25. Nb4 {[%emt 0:02:19]} c6 {[%emt 0:00:24]} 26. Rd3 {[%emt 0:01:14][%cal Rb4d5]} Rbe8 {[%emt 0:00:40][%cal Re8e1]} 27. Red1 {[%emt 0:00:22]} Re5 {[%emt 0:00:59]} 28. Nc2 {[%emt 0:01:49]} Qc7 {[%emt 0:01:35]} (28... Qe7 $19 {Strongly threatening ...h4.} 29. Rf1 Nd6) 29. c4 $17 {[%emt 0:03:43][%cal Rc4d5]} dxc4 {[%emt 0:00:25]} (29... Ne7 $17 30. Ne3 Be6) 30. Bxc4 {[%emt 0:00:02]} (30. Qxc4 $11 {remains equal.} Bc8 31. Bxc8 Qxc8 32. Qf7) 30... Bc8 {[%emt 0:00:29] aiming for ...b5.} 31. Qc3 {[%emt 0:00:45]} Be6 $2 {[%emt 0:00:34]} (31... b5 $17 32. Bb3 a5) 32. Bxe6 $14 {[%emt 0:00:42]} Rxe6 {[%emt 0:00:01]} 33. Rd7 {[%emt 0:00:03]} Qb8 {[%emt 0:00:44]} (33... Qc8 $142) 34. Nb4 {[%emt 0:00:26] White is more active.} (34. g3 $1 $16 {And now Qf3 would win.} g4 35. Qc4) 34... Rc8 {[%emt 0:00:46]} (34... Qc8 $1 $14) 35. Qc4 {[%emt 0:02:07]} ({Better is} 35. Qd3 $18) 35... Qe5 {[%emt 0:00:30] [#]} (35... Rce8 $2 36. Nxc6 Nd4 37. Qxe6 (37. Rxa7+ $2 Qxa7 38. Qxe6 Rxe6 $19) 37... Nxe6 38. Nxb8 Kxb8 39. Rf7 $18) (35... Rd6 $16 {is a better defense.}) 36. Rxa7+ $2 {[%emt 0:00:27]} Kxa7 $11 {[%emt 0:00:02] The position is equal.} 37. Qa6+ {[%emt 0:00:01]} Kb8 {[%emt 0:00:01]} 38. Qxb6+ {[%emt 0:00:23]} Ka8 {[%emt 0:00:01][%cal Oe5e1] ( -> ...Qe1+!)} 39. Qa6+ {[%emt 0:00:19]} Kb8 {[%emt 0:00:04]} 40. Qb6+ {[%emt 0:00:04]} Ka8 {White used his chance.  Weighted Error Value: White=0.46/Black=0.48} 1/2-1/2

[Event "FIDE WY-U16 Olympiad 2022"]
[Site "Nakhchivan"]
[Date "2022.10.02"]
[Round "1.4"]
[White "Shokirjonova, Barchinoy"]
[Black "Karimi, Setayesh"]
[Result "0-1"]
[ECO "D70"]
[WhiteElo "1711"]
[BlackElo "1844"]
[Annotator "NA RC COMBH"]
[PlyCount "68"]
[EventDate "2022.10.02"]
[EventType "team-tourn"]
[EventCountry "AZE"]
[SourceTitle "playchess.com"]
[Source "ChessBase"]
[SourceQuality "1"]
[WhiteTeam "Uzbekistan"]
[BlackTeam "Iran"]
[WhiteTeamCountry "UZB"]
[BlackTeamCountry "IRI"]
[TimeControl "40/5400+30:1800+30"]

1. d4 {[%emt 0:00:14]} Nf6 {[%emt 0:00:06]} 2. c4 {[%emt 0:00:39]} g6 {[%emt 0:00:07]} 3. Nf3 {[%emt 0:00:15]} Bg7 {[%emt 0:00:17]} 4. g3 {[%emt 0:00:50]} d5 {[%emt 0:00:57]} 5. cxd5 {[%emt 0:00:21]} Nxd5 {[%emt 0:00:06]} 6. Bg2 {[%emt 0:00:29]} Nb6 {[%emt 0:00:29]} 7. O-O {[%emt 0:05:10]} Nc6 {[%emt 0:00:56]} 8. e3 {[%emt 0:05:23]} O-O {[%emt 0:02:10]} 9. Nc3 {[%emt 0:05:30]} Re8 {[%emt 0:01:22]} 10. d5 {[%emt 0:09:13]} Na5 {[%emt 0:01:02]} 11. Qc2 {[%emt 0:02:15]} c6 {[%emt 0:08:46]} 12. dxc6 {[%emt 0:03:28]} Nxc6 {[%emt 0:00:09]} 13. Rd1 {[%emt 0:01:52]} Bd7 {[%emt 0:03:32]} 14. e4 {[%emt 0:08:44]} Qc8 {[%emt 0:09:08]} 15. Be3 {[%emt 0:08:12]} Nc4 {[%emt 0:07:45]} 16. Qe2 {[%emt 0:11:03]} Nxe3 {[%emt 0:15:51]} 17. Qxe3 {[%emt 0:00:28]} Bh3 {[%emt 0:05:25]} 18. Bh1 {[%emt 0:09:22]} Rd8 {[%emt 0:05:47]} 19. Rxd8+ {[%emt 0:15:09]} Qxd8 {[%emt 0:00:13]} 20. Rd1 {[%emt 0:03:16]} Qb6 {[%emt 0:06:16]} 21. Qxb6 {[%emt 0:07:42]} axb6 {[%emt 0:00:05]} 22. Ng5 {[%emt 0:00:46]} Bg4 {[%emt 0:00:27]} 23. f3 {[%emt 0:00:38]} Bc8 {[%emt 0:00:08]} 24. Nd5 {[%emt 0:00:39]} Bd4+ {[%emt 0:10:18]} 25. Kf1 {[%emt 0:00:16]} h6 {[%emt 0:01:03]} 26. Nxe7+ {[%emt 0:00:53]} Nxe7 {[%emt 0:00:18]} 27. Rxd4 {[%emt 0:00:26]} hxg5 {[%emt 0:00:36]} 28. Rd8+ {[%emt 0:00:09]} Kg7 {[%emt 0:00:13]} 29. Bg2 {[%emt 0:00:03]} Nc6 {[%emt 0:02:14]} 30. Re8 {[%emt 0:00:30]} Rb8 {[%emt 0:00:49]} 31. f4 {[%emt 0:00:34]} gxf4 {[%emt 0:00:54]} 32. gxf4 {[%emt 0:00:06]} Bh3 {[%emt 0:03:07]} 33. Rxb8 {[%emt 0:01:07]} Bxg2+ {[%emt 0:00:05]} 34. Kxg2 {[%emt 0:00:12]} Nxb8 {[%emt 0:00:04]} 0-1

[Event "FIDE WY-U16 Olympiad 2022"]
[Site "Nakhchivan"]
[Date "2022.10.02"]
[Round "1.5"]
[White "Tarhan, Adar"]
[Black "Teh, Rui Gen"]
[Result "0-1"]
[ECO "B36"]
[WhiteElo "2320"]
[BlackElo "1756"]
[Annotator "TA"]
[PlyCount "110"]
[EventDate "2022.10.02"]
[EventType "team-tourn"]
[EventCountry "AZE"]
[SourceTitle "playchess.com"]
[Source "ChessBase"]
[SourceQuality "1"]
[WhiteTeam "Turkey"]
[BlackTeam "Malaysia"]
[WhiteTeamCountry "TUR"]
[BlackTeamCountry "MAS"]
[TimeControl "40/5400+30:1800+30"]

{[%evp 27,110,50,43,46,64,27,21,27,33,27,25,30,35,0,0,-52,-32,-197,-189,-357,-357,-359,-223,-240,-243,-257,-253,-258,-254,-282,-277,-258,-258,-425,-425,-403,-352,-242,0,-397,-388,-431,-439,-631,-873,-10696,-9446,-2168,-1929,-1331,-1431,-835,-764,-2568,-2601,-6721,-10415,-29973,-29974,-29978,-29978,-29978,-29979,-29979,-29979,-29980,-29980,-29981,-29982,-29982,-29982,-29983,-29984,-29984,-29983,-29983,-29984,-29984,-29985,-29985,-29986,-29986,-29987,-29987,-29987]} 1. e4 {[%emt 0:00:03]} c5 {[%emt 0:00:13]} 2. Nf3 {[%emt 0:00:06]} g6 {[%emt 0:00:12]} 3. d4 {[%emt 0:00:09]} cxd4 {[%emt 0:00:04]} 4. Nxd4 {[%emt 0:00:12]} Nc6 {[%emt 0:00:06]} 5. c4 {[%emt 0:00:17]} Nf6 {[%emt 0:00:15]} 6. Nc3 {[%emt 0:00:10]} d6 {[%emt 0:00:07]} 7. Be2 {[%emt 0:00:07]} Nxd4 {[%emt 0:00:07]} 8. Qxd4 {[%emt 0:00:04]} Bg7 {[%emt 0:00:06]} 9. Be3 {[%emt 0:00:25]} O-O {[%emt 0:00:06]} 10. Qd2 {[%emt 0:02:26]} Be6 {[%emt 0:00:40]} 11. O-O {[%emt 0:00:15]} Qa5 {[%emt 0:01:03]} 12. Rac1 {[%emt 0:06:20]} Rfc8 {[%emt 0:01:51]} 13. b3 {[%emt 0:02:11]} a6 {[%emt 0:01:54]} 14. f4 {[%emt 0:04:35]} b5 {[%emt 0:16:46][%cal Rb5c4]} 15. f5 {[%emt 0:04:12] B36: Sicilian: Maroczy Bind: Gurgenidze System.} ({Of course not} 15. cxb5 axb5 16. Qd3 Bd7 $11) 15... Bd7 {[%emt 0:02:27]} 16. fxg6 {[%emt 0:40:50]} (16. Bf3 $5 {[%cal Rf5g6]}) 16... hxg6 {[%emt 0:02:29]} 17. e5 {[%emt 0:10:42] The position is equal.} b4 {[%emt 0:18:38]} 18. exf6 {[%emt 0:07:00]} bxc3 {[%emt 0:00:45]} 19. Rxc3 {[%emt 0:00:06]} Bxf6 {[%emt 0:00:38]} 20. Rxf6 {[%emt 0:04:54]} exf6 {[%emt 0:00:01]} 21. Bf3 {[%emt 0:00:08]} ({White should try} 21. h4 $11) 21... Bc6 $1 $15 {[%emt 0:23:48]} 22. Bd4 $2 {[%emt 0:02:40]} (22. Bg4 $1 $15) 22... Bxf3 $19 {[%emt 0:06:33] [#]} 23. Bxf6 $146 {[%emt 0:02:02]} (23. Qf4 {might work better.} Re8 24. Rxf3 Re1+ 25. Kf2) ({Predecessor:} 23. Qf4 Qg5 24. Qxf3 Re8 25. Qxf6 Re1+ 26. Kf2 Qxf6+ 27. Bxf6 Rae8 28. Rc2 R1e6 29. Bb2 {½-½ (40) Spassky,B-Panno,O Palma de Mallorca 1969}) 23... Re8 $1 {[%emt 0:07:21]} 24. gxf3 {[%emt 0:01:42] And now Qh6 would win.} Qf5 {[%emt 0:05:36] Really sharp!} 25. Bd4 {[%emt 0:04:49] [#]} Re6 $1 {[%emt 0:07:22] aiming for ...Rae8.} 26. Re3 {[%emt 0:00:43]} Rae8 {[%emt 0:00:40]} 27. Rxe6 {[%emt 0:00:05]} Rxe6 {[%emt 0:00:07][%mdl 4096] Endgame KQR-KQB} 28. Kg2 {[%emt 0:00:12] [#]} g5 {[%emt 0:02:22][%cal Bg6g5,Bg5g4][%mdl 32] Hoping for ...g4.} 29. Bf2 {[%emt 0:04:45]} g4 {[%emt 0:00:47]} 30. f4 {[%emt 0:00:05]} (30. Qd5 {was worth a try.} Qxd5 31. cxd5 gxf3+ 32. Kg3) 30... Qe4+ {[%emt 0:00:15]} 31. Kg1 {[%emt 0:00:04]} Qb1+ {[%emt 0:00:20]} 32. Kg2 {[%emt 0:00:04]} Qe4+ $2 {[%emt 0:00:02]} (32... Qf5 33. Qd4 Rh6) 33. Kg1 {[%emt 0:00:04]} Qf3 {[%emt 0:01:02][%cal Og4g3] Strongly threatening ...g3!} 34. Qa5 {[%emt 0:00:44]} Qxf4 {[%emt 0:01:07] White must now prevent ...Re2.} ({Don't go for} 34... Qd1+ $2 35. Kg2 $19) 35. Qxa6 {[%emt 0:01:44]} (35. Qd8+ $142 Kg7 36. Qh4) 35... Re2 {[%emt 0:00:28]} 36. Qa8+ {[%emt 0:00:21]} Kg7 {[%emt 0:00:23]} 37. Qa7 {[%emt 0:00:57]} Rd2 {[%emt 0:01:10] ( -> ...Rd1+)} 38. Qe3 {[%emt 0:00:52]} Qxe3 {[%emt 0:00:31]} 39. Bxe3 {[%emt 0:00:01]} Rxa2 {[%emt 0:00:10] KR-KB} 40. Bf4 {[%emt 0:00:03]} Rb2 {[%emt 0:00:42]} 41. c5 {[%emt 0:30:04]} Rxb3 {[%emt 0:30:17]} 42. Bxd6 {[%emt 0:00:06]} Kf6 {[%emt 0:00:20] Black mates.} 43. c6 {[%emt 0:00:54]} Ke6 {[%emt 0:00:10]} 44. c7 {[%emt 0:00:03]} Rc3 {[%emt 0:00:18]} 45. Bg3 {[%emt 0:00:16]} Rc2 {[%emt 0:00:27]} 46. Kf1 {[%emt 0:00:03]} Kd5 {[%emt 0:00:09]} 47. Ke1 {[%emt 0:00:04]} Ke4 {[%emt 0:00:09]} 48. Kd1 {[%emt 0:00:05]} Rc4 {[%emt 0:00:27]} 49. Kd2 {[%emt 0:00:06]} f5 {[%emt 0:00:22][%cal Bf7f5,Bf5f4][%mdl 32]} 50. Bd6 {[%emt 0:00:04]} Rc6 {[%emt 0:00:20]} 51. Ke2 {[%emt 0:00:11]} f4 {[%emt 0:01:56]} 52. Kf2 {[%emt 0:00:17]} Rc2+ {[%emt 0:00:05]} 53. Ke1 {[%emt 0:00:05]} Ke3 {[%emt 0:01:13][%cal Rc2c1]} 54. Kd1 {[%emt 0:00:07]} Rc6 {[%emt 0:00:14]} 55. Be5 {[%emt 0:00:11]} Ke4 {Weighted Error Value: White=0.73/Black=0.23 (precise)} 0-1

[Event "FIDE WY-U16 Olympiad 2022"]
[Site "Nakhchivan"]
[Date "2022.10.02"]
[Round "1.5"]
[White "Wiratunga, Jenith"]
[Black "Madaminov, Mukhiddin"]
[Result "0-1"]
[ECO "E04"]
[WhiteElo "1741"]
[BlackElo "2425"]
[Annotator "TA"]
[PlyCount "61"]
[EventDate "2022.10.02"]
[EventType "team-tourn"]
[EventCountry "AZE"]
[SourceTitle "playchess.com"]
[Source "ChessBase"]
[SourceQuality "1"]
[WhiteTeam "Sri Lanka"]
[BlackTeam "Uzbekistan"]
[WhiteTeamCountry "SRI"]
[BlackTeamCountry "UZB"]
[TimeControl "40/5400+30:1800+30"]

{[%evp 11,61,20,26,-6,-6,-8,-14,-15,-5,-9,-14,-14,-15,-18,-13,-52,-51,-52,-41,-56,-25,-23,-9,-6,-10,-21,-20,-51,-39,-50,-45,-56,-48,-54,-46,-54,-43,-58,-61,-66,-59,-85,-45,-168,-138,-290,-288,-276,-271,-510,-504,-473]} 1. d4 {[%emt 0:00:06]} Nf6 {[%emt 0:01:05]} 2. c4 {[%emt 0:00:08]} e6 {[%emt 0:00:19]} 3. g3 {[%emt 0:01:00]} d5 {[%emt 0:01:51]} 4. Bg2 {[%emt 0:00:17]} dxc4 {[%emt 0:00:10]} 5. Nf3 {[%emt 0:00:06]} a6 {[%emt 0:00:07]} 6. O-O {[%emt 0:05:19]} Nc6 {[%emt 0:01:19]} 7. b3 {[%emt 0:18:21] E04: Open Catalan: 5 Nf3.} cxb3 {[%emt 0:05:25]} 8. axb3 {[%emt 0:05:14]} Be7 {[%emt 0:04:10]} 9. Bb2 {[%emt 0:03:23] The position is equal.} O-O {[%emt 0:00:58]} 10. Nbd2 {[%emt 0:01:40][%cal Bb1d2,Bd2c4,Bc4e5][%mdl 32] [#]} Bd7 $146 {[%emt 0:01:46]} ({Predecessor:} 10... Nb4 11. Ne5 c5 12. Ndc4 Rb8 13. Qc1 cxd4 14. Rd1 Bc5 15. Na5 Qb6 16. Qf4 Bd7 {1-0 (24) Zeller,F (2395)-Georgiadis,N (2483) Switzerland 2016}) 11. Nc4 {[%emt 0:08:13]} Rb8 {[%emt 0:06:11]} 12. Qb1 {[%emt 0:07:46]} Nb4 {[%emt 0:03:59]} 13. Nce5 {[%emt 0:12:31]} Bb5 {[%emt 0:00:57]} 14. Re1 {[%emt 0:02:30]} h6 {[%emt 0:02:04]} 15. h4 {[%emt 0:07:13]} Nc6 {[%emt 0:02:39][%cal Bb4c6,Bc6a7,Ba7b5][%mdl 32]} 16. Nc4 {[%emt 0:04:54]} Bb4 {[%emt 0:02:37]} 17. Rd1 {[%emt 0:00:09]} Qe7 {[%emt 0:01:51]} 18. Qc2 {[%emt 0:05:33]} Rfd8 {[%emt 0:05:17]} 19. Na3 {[%emt 0:01:57]} Na7 {[%emt 0:01:35]} 20. Nxb5 {[%emt 0:00:58]} Nxb5 {[%emt 0:00:46]} 21. Ne5 {[%emt 0:01:21]} c5 {[%emt 0:05:16]} 22. dxc5 {[%emt 0:03:12]} Bxc5 {[%emt 0:00:06]} 23. e3 {[%emt 0:00:48]} Ba3 {[%emt 0:02:18]} 24. Nc4 {[%emt 0:03:03][%cal Rc4a3]} Bxb2 {[%emt 0:00:00]} 25. Qxb2 {[%emt 0:00:00]} Nd5 {[%emt 0:07:09]} 26. Bxd5 {[%emt 0:04:49]} exd5 {[%emt 0:03:16]} 27. Nb6 {[%emt 0:00:50]} (27. Na3 $15) 27... d4 {[%emt 0:00:36]} 28. exd4 {[%emt 0:02:28] [#] White does not recover from this.} (28. Nc4 $17) 28... Qf6 $1 $19 {[%emt 0:00:05][%csl LRb6,LRd4]} 29. Nc4 {[%emt 0:00:27]} Nxd4 {[%emt 0:00:10] aiming for ...b5.} ({And not} 29... Rxd4 30. Rac1 $17) 30. Qa3 $2 {[%emt 0:00:43]} (30. Kf1) 30... Nc2 {[%emt 0:00:28][%csl LRa1,LRa3]} 31. Qa5 {[%emt 0:00:00] Weighted Error Value: White=0.35/Black=0.07 (flawless)} 0-1